[Event "MPL 41st IND-ch Teams 2022"]
[Site "Jalgaon"]
[Date "2022.04.11"]
[Round "5.7"]
[White "Anup Shankar R"]
[Black "Das, Arghyadip"]
[Result "0-1"]
[ECO "C05"]
[WhiteElo "1862"]
[BlackElo "2471"]
[Annotator "TA"]
[PlyCount "84"]
[EventDate "2022.04.08"]
[EventType "team-tourn"]
[EventCountry "IND"]
[SourceTitle "playchess.com"]
[Source "ChessBase"]
[SourceQuality "1"]
[TimeControl "5400+30"]

{[%evp 12,84,35,-18,-19,-14,-12,-41,-35,-41,-33,-42,-26,-32,-29,-33,-28,-34,-23,-23,-31,-64,-61,-77,-17,-13,0,0,0,-24,-13,-22,-16,-56,-60,-61,-54,-65,-50,-50,-62,-50,-56,-108,-95,-244,-246,-234,-231,-273,-266,-391,-378,-377,-367,-454,-447,-454,-449,-415,-444,-445,-432,-572,-572,-601,-600,-635,-626,-636,-627,-645,-632,-606,-611]} 1. e4 {[%cal Be2e4,Be4e5][%mdl 32]} e6 2. d4 d5 3. Nd2 Nf6 4. e5 Nfd7 5. Bd3 c5 6. c3 b6 7. Qe2 (7. f4 $14) 7... cxd4 $1 {7...cxd4 scores better than 7...Nc6. C06: French Tarrasch: 3...Nf6 4 e5 Nfd7 5 Bd3 main lines.} 8. cxd4 Nc6 $1 {[%cal Bb8c6,Bc6b4,Bb4d3][%mdl 32]} 9. Ngf3 Nb4 $1 {Black is slightly better.} 10. O-O Nxd3 11. Qxd3 a5 12. Re1 Ba6 13. Qe3 Be7 14. Nf1 Qc7 15. Bd2 Qc2 {[#]} 16. Bc3 $146 ({Predecessor:} 16. b3 Ba3 17. Bc1 Be7 18. Bd2 Ba3 19. Bc1 Be7 20. Bd2 {½-½ (20) Tseshkovsky,V (2570)-Kapengut,A (2465) Ashkhabad 1978}) 16... O-O {&Nero is more active.} 17. Qf4 Bxf1 ({Black should play} 17... h6 $17) 18. Rxf1 a4 19. Rac1 Qd3 20. Rfe1 Rac8 21. Re3 Qg6 22. h4 b5 {Strongly threatening ...b4.} 23. a3 {Prevents b4.} Nb6 24. Nh2 Rc6 25. Rg3 Qh5 26. Ng4 $1 {[#] Black must now prevent Nf6+.} Kh8 $1 27. Rd1 (27. Rh3 $15) 27... Qf5 $17 ({Of course not} 27... Qxh4 $6 28. Bb4 Bxb4 29. Rh3 Qxh3 30. gxh3 $11) 28. Bd2 {This move loses the game for White.} (28. Qc1 $17) 28... Qxf4 $19 (28... Bxh4 29. Qxf5 exf5 30. Rh3 $17) 29. Bxf4 Rc2 {[%cal Bc6c2,Bc2b2,Bb2b1,Bb1d1,Bd1d4,Bd4h4,Bh4b4,Bb4b3,Bb3a3][%mdl 32]} ({Stronger than} 29... Bxh4 30. Rh3 Be7 31. Rdd3) 30. b3 b4 ({Worse is} 30... Bxh4 31. Rgd3 $17) 31. axb4 (31. bxa4 $142 Nxa4 32. axb4) 31... a3 32. Ra1 a2 33. Ne3 Rb2 {[#] Threatens to win with ...Rb1+.} 34. Nd1 Rb1 35. Rxa2 Rxd1+ 36. Kh2 {Black is clearly winning.} Rxd4 37. Be3 Rxh4+ 38. Kg1 Rxb4 39. Ra7 Nc8 40. Rc7 Rxb3 41. Rg4 h5 42. Ra4 Ra3 {Weighted Error Value: White=0.29 (precise) /Black=0.05 (flawless)} 0-1

[Event "MPL 41st IND-ch Teams 2022"]
[Site "Jalgaon"]
[Date "2022.04.11"]
[Round "5.8"]
[White "Thejkumar, M. S."]
[Black "Vignesh B"]
[Result "1/2-1/2"]
[ECO "E94"]
[WhiteElo "2433"]
[BlackElo "2249"]
[Annotator "TA"]
[PlyCount "60"]
[EventDate "2022.04.08"]
[EventType "team-tourn"]
[EventCountry "IND"]
[SourceTitle "playchess.com"]
[Source "ChessBase"]
[SourceQuality "1"]
[TimeControl "5400+30"]

{[%evp 19,60,40,54,58,64,12,0,11,0,0,9,15,41,0,11,0,0,0,0,0,0,0,0,0,0,0,0,0,0,0,0,0,22,10,9,0,35,0,35,0,20,0,1310]} 1. d4 Nf6 2. Nf3 g6 3. c4 Bg7 4. Nc3 O-O 5. e4 d6 6. Be2 e5 7. O-O exd4 8. Nxd4 {[%cal Bf3d4,Bd4c2,Bc2e3][%mdl 32]} Re8 9. f3 c6 10. Kh1 a6 11. Nc2 {E94: King's Indian: Classical: 6 Be2 e5 7 0-0: Various Black 7th moves.} b5 {[#]} 12. a4 $146 (12. Bf4 $14) ({Predecessor:} 12. Bf4 Bf8 13. Qd2 Ra7 14. Rad1 Rd7 15. a4 bxc4 16. Bxc4 a5 17. Nd4 Qb6 18. Bg5 Bg7 {0-1 (40) Maltsevskaya,A (2238)-Obolentseva,A (2346) Loo 2017}) 12... bxc4 $11 13. Bxc4 d5 14. exd5 cxd5 15. Nxd5 {[%cal Bc3d5,Bd5f4,Bf4d3,Bd3f2][%mdl 32]} Be6 {[%cal Rf6d5]} 16. Nce3 Nc6 17. Nf4 Bxc4 18. Nxc4 Qc7 19. Bd2 Ne5 20. Nxe5 Qxe5 21. Nd3 Qf5 22. Nf2 Rad8 {[%cal Og7h6]} 23. Qc1 Re2 24. Bc3 Rc2 25. Qe1 Re8 (25... Qg5 $2 26. Qe7 Rd5 27. Ng4 Nxg4 28. Qe8+ Bf8 29. fxg4 $18) 26. Qd1 {[#] Black must now prevent g4.} Ree2 $132 {[%mdl 2048] Black is fighting back} 27. Qd8+ Re8 28. Qd1 {g4 is the strong threat.} Ree2 (28... Nd5 29. Bxg7 Kxg7 30. Ne4 $16 (30. g4 Qf4 $11)) 29. Qd8+ (29. Rc1 $5) 29... Re8 30. Qd1 {[#] Hoping for g4.} Re4 $2 {[%mdl 40960] Weighted Error Value: White=0.13 (very precise) /Black=0.06 (flawless) . An unexpected result.} 1/2-1/2

[Event "MPL 41st IND-ch Teams 2022"]
[Site "Jalgaon"]
[Date "2022.04.11"]
[Round "6.1"]
[White "Aravindh, Chithambaram VR."]
[Black "Krishna C R G"]
[Result "1/2-1/2"]
[ECO "D10"]
[WhiteElo "2611"]
[BlackElo "2466"]
[Annotator "TA"]
[PlyCount "35"]
[EventDate "2022.04.08"]
[EventType "team-tourn"]
[EventCountry "IND"]
[SourceTitle "playchess.com"]
[Source "ChessBase"]
[SourceQuality "1"]
[TimeControl "5400+30"]

{[%evp 18,35,13,22,29,5,33,29,32,27,33,7,0,0,0,0,0,0,0,0]} 1. d4 {[%emt 0:00:08]} d5 {[%emt 0:00:19]} 2. c4 {[%emt 0:00:07]} c6 {[%emt 0:00:03]} 3. Nc3 {[%emt 0:00:10]} Nf6 {[%emt 0:00:07]} 4. cxd5 {[%emt 0:00:06]} cxd5 {[%emt 0:00:04]} 5. Bf4 {[%emt 0:00:06]} Nc6 {[%emt 0:00:45]} 6. e3 {[%emt 0:00:07]} a6 {[%emt 0:00:42]} 7. Bd3 {[%emt 0:00:12]} Bg4 {[%emt 0:00:18]} 8. Nge2 {[%emt 0:00:15]} e6 {[%emt 0:02:39]} 9. O-O {[%emt 0:00:11]} Be7 {[%emt 0:01:21]} 10. Rc1 {[%emt 0:15:22]} O-O {[%emt 0:01:44] D10: Slav Defence: 3 cxd5 (without early Nf3) and 3 Nc3.} 11. Na4 {[%emt 0:14:29]} Nd7 {[%emt 0:02:19]} 12. f3 {[%emt 0:00:43]} Bh5 {[%emt 0:00:48] White has an edge.} 13. Qb3 {[%emt 0:00:20]} Ra7 {[%emt 0:03:35]} 14. a3 {[%emt 0:02:23]} Bg6 {[%emt 0:11:47] The position is equal.} 15. Bxg6 {[%emt 0:05:39]} hxg6 {[%emt 0:00:02]} 16. Qd3 {[%emt 0:00:06]} Qa5 {[%emt 0:03:02] [#]} 17. Qd1 $146 {[%emt 0:08:52]} ({Predecessor:} 17. Nec3 Qd8 18. b4 Nb6 19. Nxb6 Qxb6 20. Bg3 Qd8 21. Bf2 Ra8 22. e4 Qd7 23. e5 {½-½ (58) Costachi,M (2356)-Grinberg,E (2121) Gyor 2014}) 17... Rc8 {[%emt 0:01:22]} 18. b4 {[%emt 0:03:43] Weighted Error Value: White=0.06 (flawless) /Black=0.04 (flawless)} 1/2-1/2

[Event "MPL 41st IND-ch Teams 2022"]
[Site "Jalgaon"]
[Date "2022.04.11"]
[Round "6.2"]
[White "Das, Sayantan"]
[Black "Puranik, Abhimanyu"]
[Result "1/2-1/2"]
[ECO "C78"]
[WhiteElo "2459"]
[BlackElo "2618"]
[Annotator "TA"]
[PlyCount "133"]
[EventDate "2022.04.08"]
[EventType "team-tourn"]
[EventCountry "IND"]
[SourceTitle "playchess.com"]
[Source "ChessBase"]
[SourceQuality "1"]
[TimeControl "5400+30"]

{[%evp 21,133,0,8,-9,0,0,0,0,0,0,47,28,41,33,40,33,45,45,77,25,74,79,97,104,99,85,84,30,184,184,213,238,277,273,276,272,272,264,264,269,273,258,278,211,189,197,178,108,118,91,91,100,100,87,77,68,229,223,205,193,208,206,247,216,216,224,370,91,93,84,183,27,54,51,66,29,68,68,84,77,77,84,84,54,54,54,61,61,100,100,107,107,113,72,72,72,72,0,0,0,0,0,0,0,0,0,0,0,0,0,0,0,0,0]} 1. e4 e5 2. Nf3 Nc6 3. Bb5 a6 4. Ba4 Nf6 5. O-O b5 6. Bb3 Bc5 7. c3 d6 8. a4 Bb7 9. d4 Bb6 10. Re1 h6 11. h3 {11.Be3 is the modern continuation.} O-O 12. Be3 {C78: Ruy Lopez: Archangelsk and Möller Defences.} exd4 (12... Nxe4 13. d5 $16) 13. cxd4 Na5 ({Resist} 13... Nxe4 14. d5 Ne5 15. Nxe5 $16) 14. d5 c6 {[#]} 15. Nc3 $146 ({Predecessor:} 15. dxc6 Bxc6 16. axb5 axb5 17. Bxb6 Qxb6 18. Bc2 Nc4 19. Rxa8 Bxa8 20. b4 Rc8 21. Nd4 {½-½ (27) Abdusattorov,N (2608)-Matlakov,M (2716) Khanty-Mansiysk 2019}) 15... b4 {[#]} (15... Nxb3 $11 16. Qxb3 cxd5) 16. dxc6 $1 $14 Bxc6 17. Bxb6 Qxb6 18. Nd5 Bxd5 19. Bxd5 ({Reject} 19. exd5 Rac8 $11) 19... Rac8 20. Nd4 (20. Nh4 $16) 20... Nxd5 (20... g6 $11 {feels stronger.}) 21. exd5 $16 {Threatens to win with Nf5.} Rc4 22. Nf5 Rf4 {[%csl LRf2,LRf5] Prevents Qf3.} 23. Ne7+ $1 Kh8 24. Qd2 ({White should try} 24. Qe2 $16) 24... Rf6 $2 (24... Qd4 $11 {and Black has nothing to worry.} 25. Qxd4 Rxd4) 25. Re4 $18 Nb3 {[#]} 26. Rxb4 $1 {[%mdl 512]} Qa5 (26... Nxd2 27. Rxb6) 27. Qc3 ({Not} 27. Nc6 Nxd2 28. Nxa5 Re8 $16) 27... Nxa1 {[#]} 28. Rb8 {[%mdl 576] Prevents Re8. Discovered Attack} Qxc3 29. Rxf8+ Kh7 {( -> ...Qc1+)} 30. bxc3 {[%mdl 4096] Endgame KRN-KRN} Nb3 31. f3 Rf4 32. Rd8 Rxa4 33. Rxd6 a5 {[%cal Ba6a5,Ba5a4][%mdl 32]} 34. Ra6 ({White should play} 34. Rb6 $18 Ra1+ 35. Kh2) 34... Ra1+ $16 35. Kh2 Rc1 36. Rc6 {[%cal Ba6c6,Bc6c4,Bc4a4][%mdl 32]} a4 37. d6 {And now Nd5 would win.} Rd1 {Inhibits Nd5.} 38. Nc8 {aiming for Rc4.} Rd3 $2 {[#]} (38... Na5 $1 $14 39. Ra6 Nc4) 39. Rc4 $1 $18 a3 {Strongly threatening ...a2.} 40. Ra4 Nc5 41. Rxa3 Ne6 42. Ra6 Rxc3 43. d7 {[%cal Oa6e6] Rxe6! would kill now.} Rd3 (43... Nd8 {was called for.} 44. Rd6 g6) 44. Nd6 $2 (44. Rd6 $18 Rxd6 45. Nxd6) 44... Nd8 $16 45. f4 Kg8 {[#]} (45... h5 $16 46. f5 h4) 46. Kg1 $2 ({Better is} 46. Ra8 $1 $18 Rxd6 47. Rxd8+ Kh7 48. f5) 46... Kf8 $11 47. Kf2 Rd5 48. g4 Rd3 49. h4 Ne6 50. f5 Nd8 51. f6 gxf6 52. Nf5 {[%csl LRf6,LRh6] &Bianco is more active.} Rxd7 {[%cal Oh6h5]} 53. Rxf6 Ne6 54. Nxh6 Nc5 {White must now prevent ...Ne4+.} 55. Rc6 Nd3+ 56. Ke3 Ne5 57. Rc8+ Kg7 58. Nf5+ Kh7 59. Ke4 (59. Kf4 $16 f6 60. h5) 59... Nxg4 {The position is equal.} 60. Rc6 (60. Kf4 $5 {[%cal Rf4g4]} Nh6 61. Rc4 $11) 60... Ra7 61. Kf4 Ra4+ 62. Kg3 Ne5 63. Rh6+ Kg8 64. Ne7+ Kg7 65. Nf5+ Kg8 66. Ne7+ Kg7 67. Nf5+ {Black escapes into a draw.  Weighted Error Value: White=0.25 (precise) /Black=0.22 (precise)} 1/2-1/2

[Event "MPL 41st IND-ch Teams 2022"]
[Site "Jalgaon"]
[Date "2022.04.11"]
[Round "6.3"]
[White "Harsha Bharathakoti"]
[Black "Das, Arghyadip"]
[Result "1/2-1/2"]
[ECO "A28"]
[WhiteElo "2499"]
[BlackElo "2471"]
[Annotator "TA"]
[PlyCount "180"]
[EventDate "2022.04.08"]
[EventType "team-tourn"]
[EventCountry "IND"]
[SourceTitle "playchess.com"]
[Source "ChessBase"]
[SourceQuality "1"]
[TimeControl "5400+30"]

{[%evp 47,180,0,0,0,0,0,0,0,2,0,0,0,12,18,22,0,55,55,45,40,53,31,35,0,0,0,0,0,0,0,4,0,0,0,18,9,5,0,2,0,0,0,78,78,78,78,78,78,78,78,102,102,102,102,102,78,102,103,132,128,118,111,126,78,78,65,126,108,101,101,101,27,27,27,27,34,41,0,27,8,183,132,131,131,132,132,132,132,215,0,624,536,1206,1036,5959,8,8,0,29972,0,0,0,0,0,0,0,0,0,0,0,0,0,0,0,0,0,0,0,0,0,0,0,0,0,0,0,0,0,0,0,0,0,0,0,0]} 1. c4 {[%emt 0:00:04]} e5 {[%emt 0:00:05]} 2. Nc3 {[%emt 0:00:15]} Nf6 {[%emt 0:00:05]} 3. Nf3 {[%emt 0:00:12]} Nc6 {[%emt 0:00:04]} 4. e3 {[%emt 0:00:04]} Bb4 {[%emt 0:00:25]} 5. Qc2 {[%emt 0:00:06]} Bxc3 {[%emt 0:00:14]} 6. Qxc3 {[%emt 0:02:18]} Qe7 {[%emt 0:00:04]} 7. d4 {[%emt 0:00:04]} Ne4 {[%emt 0:02:39]} 8. Qd3 {[%emt 0:00:42]} exd4 {[%emt 0:00:24]} 9. Nxd4 {[%emt 0:00:18]} Nc5 {[%emt 0:01:15]} 10. Qd1 {[%emt 0:03:32]} Nxd4 {[%emt 0:00:07]} 11. Qxd4 {[%emt 0:00:05]} Ne6 {[%emt 0:00:04]} 12. Qc3 {[%emt 0:14:59]} b6 {[%emt 0:00:09]} 13. b3 {[%emt 0:16:59]} Bb7 {[%emt 0:00:27]} 14. Bb2 {[%emt 0:00:04]} Qh4 {[%emt 0:17:11]} 15. Qc2 {[%emt 0:10:43]} Be4 {[%emt 0:12:33]} 16. Qe2 {[%emt 0:00:03]} O-O-O {[%emt 0:03:43]} 17. O-O-O {[%emt 0:04:47]} Rhe8 {[%emt 0:01:41]} 18. f3 {[%emt 0:00:23]} Bb7 {[%emt 0:00:22]} 19. e4 {[%emt 0:02:47]} f5 {[%emt 0:09:35]} 20. exf5 {[%emt 0:02:03]} Qf4+ {[%emt 0:00:19]} 21. Qd2 {[%emt 0:00:46]} Qxf5 {[%emt 0:00:04]} 22. Bd3 {[%emt 0:00:04]} Qf7 {[%emt 0:03:03]} 23. Rhe1 {[%emt 0:02:53]} Kb8 {[%emt 0:04:29]} 24. Bc2 {[%emt 0:05:36]} Bc6 {[%emt 0:05:24]} 25. Kb1 {[%emt 0:01:26]} (25. Bxh7 $2 g6 26. Qh6 Nf8 $19) 25... Re7 {[%emt 0:06:20]} 26. Re3 {[%emt 0:02:54]} Rde8 {[%emt 0:04:36]} 27. Rde1 {[%emt 0:00:50]} (27. Bxh7 $2 g6 28. Bxg6 Qxg6+ 29. Ka1 Rh7 $19) 27... Nf8 {[%emt 0:01:34]} 28. Bc3 {[%emt 0:02:23]} Rxe3 {[%emt 0:02:09]} 29. Rxe3 {[%emt 0:00:12]} Rxe3 {[%emt 0:01:29]} 30. Qxe3 {[%emt 0:00:13]} Ne6 {[%emt 0:00:41]} 31. Kb2 {[%emt 0:03:26]} (31. f4 $5 {[%cal Rf4f5]}) 31... g5 {[%emt 0:01:19]} (31... g6 $11) 32. Qe5 $14 {[%emt 0:01:43]} h5 {[%emt 0:01:56]} 33. Qf6 {[%emt 0:06:38]} Qg8 $1 {[%emt 0:06:59]} 34. g3 {[%emt 0:04:42]} h4 {[%emt 0:01:24]} 35. gxh4 {[%emt 0:03:39]} gxh4 {[%emt 0:00:01]} 36. Qxh4 {[%emt 0:00:15]} Qg2 $1 {[%emt 0:00:41]} 37. Qg3 {[%emt 0:02:07]} Qe2 {[%emt 0:00:39]} 38. Qe5 {[%emt 0:00:48]} Qg2 {[%emt 0:00:42]} 39. Qg3 {[%emt 0:02:59]} Qe2 {[%emt 0:00:09]} 40. Qe5 {[%emt 0:01:02]} Qg2 {[%emt 0:00:39]} 41. f4 {[%emt 0:02:36]} Nc5 {[%emt 0:02:06]} 42. Qe3 {[%emt 0:00:38]} Qxh2 {[%emt 0:01:21]} 43. f5 {[%emt 0:00:49]} Be4 {[%emt 0:05:55]} 44. Qd2 {[%emt 0:00:05]} Qxd2 {[%emt 0:00:18]} (44... Qg3 $11) 45. Bxd2 $16 {[%emt 0:00:03]} Bxc2 {[%emt 0:00:29]} 46. Kxc2 {[%emt 0:00:04]} Kc8 {[%emt 0:00:05]} 47. Bf4 {[%emt 0:03:25]} d6 {[%emt 0:02:25]} 48. b4 $1 {[%emt 0:00:10]} Ne4 {[%emt 0:00:09]} 49. Kd3 {[%emt 0:00:11]} Nf6 {[%emt 0:00:19]} 50. Bg5 {[%emt 0:01:06]} Ng4 {[%emt 0:00:18]} 51. Kd4 {[%emt 0:00:42]} Kd7 {[%emt 0:01:46]} 52. b5 {[%emt 0:00:06]} Ne5 {[%emt 0:00:42]} 53. Bf4 {[%emt 0:00:14]} Ng4 {[%emt 0:00:59]} 54. Ke4 {[%emt 0:00:53]} Nf2+ {[%emt 0:00:56]} 55. Ke3 {[%emt 0:00:09]} (55. Kd5 $142 $1) 55... Nd1+ $16 {[%emt 0:00:19]} 56. Kd4 {[%emt 0:00:32]} Nf2 {[%emt 0:00:17]} (56... c5+ $1 $14 57. bxc6+ Kxc6) 57. Bg3 {[%emt 0:00:40]} Ng4 {[%emt 0:00:13]} 58. Ke4 {[%emt 0:00:05]} Ke8 {[%emt 0:01:38]} 59. a4 {[%emt 0:00:50]} (59. Bf4 $16) 59... Nf6+ $11 {[%emt 0:00:41]} 60. Kd4 {[%emt 0:00:44]} Kd7 {[%emt 0:00:02]} 61. Bh4 {[%emt 0:00:48]} Ng4 $1 {[%emt 0:00:13]} 62. Bg3 {[%emt 0:00:27]} Nf6 {[%emt 0:00:20]} 63. Be1 {[%emt 0:00:22]} Nh5 $2 {[%emt 0:03:29]} (63... c5+ $11 64. bxc6+ Kxc6) 64. Ke4 {[%emt 0:00:20]} ({White should try} 64. Bh4 $18) 64... Nf6+ $16 {[%emt 0:00:13]} 65. Kf4 {[%emt 0:00:49]} Ke8 {[%emt 0:00:46]} 66. Bc3 {[%emt 0:00:12]} Nh7 {[%emt 0:01:03]} 67. Bd4 {[%emt 0:00:51]} Kd7 {[%emt 0:00:21] [#]} (67... Nf8 $16 {was necessary.} 68. Ke4 Nh7) 68. Bc3 $2 {[%emt 0:00:47]} (68. Bf2 $1 $18) 68... c6 $2 {[%emt 0:00:34][%mdl 8192]} (68... Ke8 $11) 69. Kg4 $18 {[%emt 0:00:31]} d5 {[%emt 0:00:35]} 70. cxd5 {[%emt 0:00:36]} cxb5 {[%emt 0:00:07]} 71. Kh5 $2 {[%emt 0:00:36]} (71. axb5 $18 {Kh5 would kill now.} Ke7 72. Kh5) 71... b4 $1 $11 {[%emt 0:00:40]} (71... bxa4 72. Bg7 (72. Kg6 Nf8+ 73. Kf7 Nh7 $11) 72... b5 73. Kg6 $18) 72. Bg7 {[%emt 0:00:21]} Ke8 $2 {[%emt 0:00:17][%mdl 8192] [#]} (72... b3 $11) 73. Kg6 $2 {[%emt 0:00:43]} (73. Kh6 $1 {mates} Nf8 74. Bxf8 Kxf8 75. d6 Ke8 76. f6 b3 77. Kg7 Kd7 78. f7) 73... Nf8+ $11 {[%emt 0:00:08]} 74. Kg5 {[%emt 0:00:23]} ({Much weaker is} 74. Bxf8 Kxf8 75. Kf6 b3 $17) 74... Nd7 {[%emt 0:00:50]} 75. Kg6 {[%emt 0:00:31]} Nf8+ {[%emt 0:00:06]} 76. Kg5 {[%emt 0:00:14]} ({Much worse is} 76. Bxf8 Kxf8 77. Kf6 b3 $17) 76... Nd7 {[%emt 0:01:27]} 77. Bd4 {[%emt 0:00:39]} Kf7 {[%emt 0:00:09]} 78. Kf4 {[%emt 0:00:28]} b3 {[%emt 0:00:07]} 79. d6 {[%emt 0:00:40]} Nc5 {[%emt 0:00:16]} 80. Ke5 {[%emt 0:00:20]} Nd3+ {[%emt 0:01:10]} 81. Kd5 {[%emt 0:00:03]} b2 {[%emt 0:00:14]} 82. Bxb2 {[%emt 0:00:16]} (82. d7 {feels hotter.} Ke7 83. Bxb2 Nxb2 84. Kc6) 82... Nxb2 {[%emt 0:00:04]} 83. Kc6 {[%emt 0:01:09]} Nc4 {[%emt 0:00:28]} (83... Nxa4 84. d7 b5 85. d8=Q Nb6 86. Kxb5 Kg7 87. Qg5+ Kf8 88. Kc6) 84. d7 {[%emt 0:00:03]} Ne5+ $1 {[%emt 0:00:03]} (84... Ke7 85. Kc7 Kf6 86. d8=Q+ Ke5 87. f6 Ne3 88. Qd6+ Ke4 89. f7) 85. Kc7 {[%emt 0:00:03]} Nxd7 $1 {[%emt 0:00:03]} 86. Kxd7 {[%emt 0:00:03]} a6 {[%emt 0:00:07]} 87. Kc6 {[%emt 0:00:03]} b5 $1 {[%emt 0:00:05]} 88. axb5 {[%emt 0:00:02]} axb5 {[%emt 0:00:03]} 89. Kxb5 {[%emt 0:00:03]} Kf6 {[%emt 0:00:04]} 90. Kc5 {[%emt 0:00:03]} Kxf5 {[%emt 0:00:04]} 1/2-1/2

[Event "MPL 41st IND-ch Teams 2022"]
[Site "Jalgaon"]
[Date "2022.04.11"]
[Round "6.4"]
[White "Laxman, R.R."]
[Black "Sankalp Gupta"]
[Result "1/2-1/2"]
[ECO "D11"]
[WhiteElo "2429"]
[BlackElo "2536"]
[Annotator "TA"]
[PlyCount "43"]
[EventDate "2022.04.08"]
[EventType "team-tourn"]
[EventCountry "IND"]
[SourceTitle "playchess.com"]
[Source "ChessBase"]
[SourceQuality "1"]
[TimeControl "5400+30"]

{[%evp 9,43,20,28,31,25,27,30,16,26,21,18,4,29,0,0,0,7,8,11,3,2,0,0,0,16,6,6,5,11,6,6,11,8,0,10,0]} 1. d4 {[%emt 0:00:30]} d5 {[%emt 0:00:19]} 2. Nf3 {[%emt 0:00:00]} Nf6 {[%emt 0:00:07]} 3. c4 {[%emt 0:00:00]} c6 {[%emt 0:00:04]} 4. e3 {[%emt 0:04:26]} e6 {[%emt 0:00:09][%cal Be7e6,Be6e5,Be5e4][%mdl 32]} 5. b3 {[%emt 0:00:40]} Ne4 {[%emt 0:00:10]} 6. Bd3 {[%emt 0:02:25] D30: Queen's Gambit Declined: Systems without Nc3.} Bb4+ {[%emt 0:00:28] 6...Bd6 is not played anymore.} 7. Nbd2 {[%emt 0:01:17]} Nd7 {[%emt 0:00:07]} 8. a3 {[%emt 0:02:04] White has an edge.} Bc3 {[%emt 0:00:15]} 9. Rb1 {[%emt 0:01:10]} e5 {[%emt 0:03:43] [#]} 10. cxd5 $146 {[%emt 0:07:57]} (10. O-O {with more complications.} Bxd2 11. Bxd2 Nxd2 12. Nxd2 e4 13. Be2) ({Predecessor:} 10. b4 O-O 11. O-O Bxd2 12. Bxd2 Nxd2 13. Qxd2 a6 14. Qc2 g6 15. cxd5 exd4 16. a4 {1-0 (25) Huzman,A (2569)-Mnatsakanian,E (2144) Yerevan 2014}) 10... cxd5 {[%emt 0:00:03]} 11. O-O {[%emt 0:03:14]} Bxd2 {[%emt 0:05:16] The position is equal.} 12. Bxd2 {[%emt 0:02:11]} ({But not} 12. Nxd2 Nc3 13. Qg4 O-O 14. dxe5 Nxe5 $15) 12... Nxd2 {[%emt 0:00:08]} 13. Nxd2 {[%emt 0:00:05]} e4 {[%emt 0:00:45]} 14. Be2 {[%emt 0:00:27]} O-O {[%emt 0:01:27]} 15. Qc2 {[%emt 0:01:06]} Nf6 {[%emt 0:06:08]} 16. Rfc1 {[%emt 0:01:45]} Bd7 {[%emt 0:02:11]} 17. Qc5 {[%emt 0:03:03]} Qb8 {[%emt 0:08:50]} 18. a4 {[%emt 0:11:46]} b6 {[%emt 0:06:46]} 19. Qa3 {[%emt 0:01:28]} a5 {[%emt 0:00:13]} 20. Bb5 {[%emt 0:10:53]} Qe8 {[%emt 0:01:06]} 21. Be2 {[%emt 0:03:21]} Qb8 {[%emt 0:01:42]} 22. Bb5 {[%emt 0:04:47] An even fight not without its subleties.  Weighted Error Value: White=0.06 (flawless) /Black=0.02 (flawless)} 1/2-1/2

[Event "MPL 41st IND-ch Teams 2022"]
[Site "Jalgaon"]
[Date "2022.04.11"]
[Round "6.5"]
[White "Dony K V"]
[Black "Vignesh B"]
[Result "0-1"]
[ECO "A46"]
[WhiteElo "1633"]
[BlackElo "2249"]
[Annotator "RC"]
[PlyCount "56"]
[EventDate "2022.04.08"]
[EventType "team-tourn"]
[EventCountry "IND"]
[SourceTitle "playchess.com"]
[Source "ChessBase"]
[SourceQuality "1"]
[TimeControl "5400+30"]

1. d4 {[%emt 0:00:05]} Nf6 {[%emt 0:00:14]} 2. Nf3 {[%emt 0:00:18]} e6 {[%emt 0:00:18]} 3. g3 {[%emt 0:00:11]} b5 {[%emt 0:02:31]} 4. Bg2 {[%emt 0:00:22]} Bb7 {[%emt 0:00:02]} 5. O-O {[%emt 0:00:19]} c5 {[%emt 0:00:15]} 6. c3 {[%emt 0:01:43]} d5 {[%emt 0:06:21]} 7. Bg5 {[%emt 0:00:53]} Nbd7 {[%emt 0:00:43]} 8. Ne5 {[%emt 0:04:20]} Be7 {[%emt 0:01:40]} 9. f4 {[%emt 0:01:31]} O-O {[%emt 0:05:21]} 10. Nd2 {[%emt 0:00:28]} Nxe5 {[%emt 0:00:30]} 11. fxe5 {[%emt 0:01:41]} Nd7 {[%emt 0:03:55]} 12. Bxe7 {[%emt 0:00:29]} Qxe7 {[%emt 0:00:03]} 13. e3 {[%emt 0:00:39]} a5 {[%emt 0:00:38]} 14. Qh5 {[%emt 0:07:10]} a4 {[%emt 0:10:46]} 15. Rf4 {[%emt 0:01:33]} a3 {[%emt 0:02:32]} 16. Rh4 {[%emt 0:01:44]} h6 {[%emt 0:00:05]} 17. b3 {[%emt 0:02:03]} f6 {[%emt 0:08:26]} 18. exf6 {[%emt 0:02:06]} Rxf6 {[%emt 0:01:22]} 19. Rf1 {[%emt 0:02:32]} Raf8 {[%emt 0:09:42]} 20. Rhf4 {[%emt 0:03:42]} b4 {[%emt 0:05:06]} 21. cxb4 {[%emt 0:14:38]} cxd4 {[%emt 0:00:18]} 22. Rxd4 {[%emt 0:10:14]} e5 {[%emt 0:01:53]} 23. Rxd5 {[%emt 0:03:58]} Rxf1+ {[%emt 0:01:46]} 24. Nxf1 {[%emt 0:00:51]} Bxd5 {[%emt 0:00:16]} 25. Bxd5+ {[%emt 0:00:11]} Kh8 {[%emt 0:00:02]} 26. b5 {[%emt 0:10:05]} Nf6 {[%emt 0:01:03]} 27. Qd1 {[%emt 0:06:00]} Rd8 {[%emt 0:00:24]} 28. e4 {[%emt 0:00:12]} Qc5+ 0-1